bitfinex-derivatives/quotes_BTCF0:USTF0_20250127
["timestamp","ask_amount","ask_price","bid_price","bid_amount"]
[1738000136983,0.01,99723.0,99722.0,1.84389703]
[1738000137381,0.3608,99740.0,99722.0,1.84389703]
[1738000137586,0.3608,99740.0,99730.0,0.14504685]
[1738000138089,0.3608,99740.0,99730.0,0.34565785]
[1738000138396,0.3608,99740.0,99731.0,0.3608]
[1738000138689,0.3638,99740.0,99731.0,0.3608]
[1738000139074,0.3638,99740.0,99737.0,0.200595]
[1738000139272,0.3648,99740.0,99737.0,0.200595]
[1738000139487,0.3648,99740.0,99731.0,0.3608]
[1738000139488,0.3648,99740.0,99738.0,1.5]
[1738000140086,0.3648,99740.0,99738.0,1.44980474]
[1738000140279,0.3648,99740.0,99738.0,1.44966961]
[1738000140484,0.3738,99740.0,99731.0,0.3608]
[1738000140684,0.3738,99740.0,99732.0,0.200607]
[1738000140883,0.3738,99740.0,99731.0,0.3608]
[1738000140884,0.08929812,99735.0,99731.0,0.3608]
[1738000141189,0.08929812,99735.0,99734.0,0.200603]
[1738000141883,0.08929812,99735.0,99734.0,1.700603]
[1738000142283,0.09429812,99735.0,99734.0,1.700603]
[1738000142488,0.09429812,99735.0,99734.0,1.5]
[1738000142687,0.09629812,99735.0,99731.0,0.3608]
[1738000142999,0.29689912,99735.0,99731.0,0.31060474]
[1738000143288,0.09629812,99735.0,99731.0,0.31060474]
[1738000144091,0.09129812,99735.0,99734.0,0.003]
[1738000144489,0.09129812,99735.0,99723.0,1.50088]
[1738000144490,0.3628,99735.0,99723.0,1.50088]
[1738000144784,0.200607,99732.0,99731.0,0.001]
[1738000145298,0.200606,99733.0,99731.0,0.001]
[1738000145493,0.3608,99735.0,99731.0,0.001]
[1738000145786,0.200607,99732.0,99723.0,1.506]
[1738000145993,0.20061,99731.0,99723.0,1.45580474]
[1738000146387,0.3608,99735.0,99723.0,1.45380474]
[1738000146590,0.561423,99724.0,99713.0,0.00015044]
[1738000146800,0.3608,99714.0,99703.0,0.0008]
[1738000147094,0.3608,99714.0,99680.0,0.14504685]
[1738000147095,0.200708,99682.0,99680.0,0.14504685]
[1738000147392,0.200708,99682.0,99671.0,0.30020661]
[1738000147597,0.200708,99682.0,99671.0,0.29940661]
[1738000147896,0.20075,99661.0,99660.0,0.35928793]
[1738000148083,0.92235,99661.0,99660.0,0.35928793]
[1738000148289,0.200762,99655.0,99651.0,0.00015044]
[1738000148592,0.72212001,99661.0,99651.0,0.00015044]
[1738000148786,0.200776,99648.0,99644.0,0.5066233]
[1738000148996,0.561576,99648.0,99647.0,0.30157591]
[1738000149297,0.561576,99648.0,99647.0,0.25138065]
[1738000149885,0.564576,99648.0,99647.0,0.25138065]
[1738000150086,0.200782,99645.0,99644.0,0.5066233]
[1738000150286,0.200782,99645.0,99644.0,0.0121398]
[1738000150485,0.3,99645.0,99639.0,0.003]
[1738000150794,0.561592,99640.0,99639.0,0.003]
[1738000151288,0.861592,99640.0,99639.0,0.003]
[1738000152096,0.3608,99640.0,99609.0,0.15965774]
[1738000152282,0.05125594,99645.0,99600.0,0.1]
[1738000152283,0.3608,99616.0,99610.0,0.14504685]
[1738000152485,0.3608,99616.0,99615.0,0.200843]
[1738000153196,0.3608,99616.0,99615.0,1.700843]
[1738000153697,0.00015052,99625.0,99624.0,0.200825]
[1738000154388,0.00015052,99625.0,99624.0,1.700825]
[1738000155296,0.00215052,99625.0,99624.0,1.65062974]
[1738000155792,0.00315052,99625.0,99624.0,1.65062974]
[1738000156186,0.00150637,99630.0,99624.0,1.5]
[1738000156387,0.3608,99626.0,99624.0,1.5]
[1738000156587,0.3608,99626.0,99624.0,0.001]
[1738000156588,0.561622,99626.0,99624.0,0.001]
[1738000156783,0.561622,99626.0,99600.0,0.1]
[1738000156784,0.200871,99601.0,99600.0,0.1]
[1738000156994,0.561671,99601.0,99600.0,0.1]
[1738000158297,0.561671,99601.0,99600.0,0.04980474]
[1738000158495,0.562671,99601.0,99600.0,0.05580474]
[1738000159090,0.564671,99601.0,99600.0,0.05580474]
[1738000160098,0.568671,99601.0,99600.0,0.04980474]
[1738000160707,0.567671,99601.0,99600.0,0.04980474]
[1738000161005,0.3668,99601.0,99600.0,0.04980474]
[1738000161190,0.002,99601.0,99599.0,0.200874]
[1738000161391,0.005,99601.0,99599.0,0.200874]
[1738000161596,0.0001506,99610.0,99600.0,1.700872]
[1738000161795,0.0001506,99610.0,99600.0,1.5]
[1738000161997,0.003,99601.0,99600.0,1.5]
[1738000162198,0.0001506,99610.0,99600.0,1.5]
[1738000162401,0.3608,99621.0,99607.0,0.3608]
[1738000162607,0.3608,99621.0,99610.0,0.22402827]
[1738000162901,0.3608,99621.0,99612.0,0.200849]
[1738000163091,0.3608,99621.0,99614.0,0.200844]
[1738000163290,0.3608,99621.0,99614.0,0.14948934]
[1738000163902,0.3608,99621.0,99615.0,0.200842]
[1738000164109,0.08833694,99623.0,99619.0,0.3608]
[1738000164308,0.08833694,99623.0,99620.0,0.10290474]
[1738000164809,0.200843,99615.0,99614.0,0.006]
[1738000166295,0.200846,99614.0,99612.0,0.0001506]
[1738000166493,0.200846,99614.0,99600.0,1.28916653]
[1738000166898,0.3608,99617.0,99606.0,0.3608]
[1738000167108,0.3608,99617.0,99614.0,0.003]
[1738000167300,0.3608,99617.0,99607.0,0.30876274]
[1738000167508,0.3608,99617.0,99607.0,0.46746274]
[1738000167704,0.001,99614.0,99607.0,0.46746274]
[1738000167901,0.001,99614.0,99608.0,0.200856]
[1738000168614,0.001,99614.0,99607.0,0.26660474]
[1738000168803,0.001,99614.0,99607.0,0.26860474]
[1738000169200,0.200853,99611.0,99607.0,0.26860474]
[1738000169406,0.200853,99611.0,99607.0,0.26660474]
[1738000169611,0.200853,99610.0,99608.0,0.002]
[1738000170112,0.3608,99617.0,99608.0,0.002]
[1738000170302,0.001,99614.0,99607.0,0.43348206]
[1738000170910,0.200845,99614.0,99608.0,0.005]
[1738000171214,0.3608,99617.0,99608.0,0.005]
[1738000171406,0.3608,99617.0,99607.0,0.63214106]
[1738000171603,0.001,99614.0,99609.0,0.200855]
[1738000171915,0.0001506,99627.0,99614.0,0.200843]
[1738000172110,0.0001506,99627.0,99619.0,0.3608]
[1738000172417,0.0001506,99627.0,99625.0,0.200821]
[1738000172716,0.0001506,99627.0,99619.0,0.3608]
[1738000172717,0.00150637,99630.0,99619.0,0.40415322]
[1738000172912,0.08833694,99642.0,99629.0,0.3608]
[1738000173101,0.08833694,99642.0,99632.0,0.200808]
[1738000173506,0.08833694,99642.0,99632.0,0.15061274]
[1738000174015,0.08833694,99642.0,99635.0,0.200802]
[1738000174205,0.0001506,99647.0,99641.0,0.3608]
[1738000174414,0.200749,99662.0,99641.0,0.56159]
[1738000174708,0.00150609,99664.0,99652.0,0.3608]
[1738000174905,0.00150609,99664.0,99656.0,0.20076]
[1738000175108,0.00150609,99664.0,99652.0,1.8608]
[1738000175109,0.00150609,99664.0,99653.0,0.1616]
[1738000175317,0.23556519,99678.0,99671.0,0.20073]
[1738000175505,0.23556519,99678.0,99671.0,0.56153]
[1738000175702,0.26814168,99677.0,99675.0,0.200722]
[1738000175921,0.01674168,99677.0,99676.0,1.64984607]
[1738000176114,0.00150539,99697.0,99695.0,0.200681]
[1738000176418,0.00150539,99697.0,99695.0,0.51128574]
[1738000177317,0.00950539,99697.0,99695.0,0.51228574]
[1738000178224,0.01350539,99697.0,99695.0,0.51228574]
[1738000178520,0.01350539,99697.0,99695.0,0.55594767]
[1738000178917,0.01350539,99697.0,99695.0,0.40546193]
[1738000179110,0.21418339,99697.0,99695.0,0.04466193]
[1738000179417,0.21418339,99697.0,99681.0,0.25183921]
[1738000179418,0.3608,99696.0,99681.0,0.25183921]
[1738000179615,0.3608,99696.0,99681.0,0.61263921]
[1738000179821,0.3608,99696.0,99681.0,0.29488185]
[1738000180011,0.200708,99682.0,99681.0,0.29488185]
[1738000180207,0.200708,99682.0,99681.0,0.04304264]
[1738000180514,0.200708,99682.0,99672.0,0.3608]
[1738000180714,0.200716,99678.0,99672.0,0.00015052]
[1738000181118,0.3608,99687.0,99672.0,0.00015052]
[1738000181317,0.00015052,99685.0,99672.0,0.00015052]
[1738000181518,0.002,99682.0,99672.0,0.00015052]
[1738000181919,0.002,99682.0,99672.0,0.20087752]
[1738000182415,0.002,99682.0,99672.0,0.00015052]
[1738000182611,0.002,99682.0,99670.0,0.17398353]
[1738000182924,0.001,99678.0,99668.0,0.200735]
[1738000183108,0.201716,99678.0,99666.0,0.40292509]
[1738000183315,0.001,99678.0,99666.0,0.40292509]
[1738000183521,0.001,99682.0,99666.0,0.40292509]
[1738000183816,0.200729,99672.0,99666.0,0.40292509]
[1738000184114,0.200731,99671.0,99666.0,0.40292509]
[1738000184320,0.200731,99671.0,99668.0,0.001]
[1738000185620,0.3608,99676.0,99666.0,0.35372983]
[1738000185814,0.200746,99663.0,99662.0,0.00015052]
[1738000186012,0.561546,99663.0,99662.0,0.00015052]
[1738000186214,0.3608,99663.0,99631.0,0.3608]
[1738000186518,0.200796,99639.0,99631.0,0.3608]
[1738000186711,0.3608,99648.0,99631.0,0.3608]
[1738000187109,0.36132001,99663.0,99662.0,0.003]
[1738000187325,0.561546,99663.0,99662.0,0.003]
[1738000187707,0.3608,99663.0,99653.0,0.00015052]
[1738000187906,0.3608,99663.0,99653.0,0.20091552]
[1738000188119,0.3608,99663.0,99653.0,0.00015052]
[1738000188319,0.3608,99663.0,99653.0,0.03542375]
[1738000188523,0.3608,99663.0,99642.0,0.31075526]
[1738000188713,0.3608,99647.0,99631.0,0.3618]
[1738000188914,0.3608,99647.0,99635.0,0.200801]
[1738000189428,0.3608,99663.0,99631.0,0.39764443]
[1738000189617,0.200752,99661.0,99653.0,0.001]
[1738000189814,0.00015052,99657.0,99653.0,0.001]
[1738000191224,0.00015052,99657.0,99654.0,0.200764]
[1738000191413,0.00015052,99657.0,99655.0,0.200762]
[1738000191611,0.00015052,99657.0,99655.0,1.44980474]
[1738000191915,0.20090952,99657.0,99655.0,1.44980474]
[1738000192316,0.20077,99651.0,99650.0,0.03601072]
[1738000192615,0.200781,99646.0,99636.0,1.5]
[1738000193211,0.3608,99651.0,99636.0,1.5]
[1738000193212,0.3608,99643.0,99636.0,1.5]
[1738000193517,0.200781,99646.0,99636.0,1.5]
[1738000193718,0.56157,99651.0,99650.0,0.003]
[1738000194114,0.3608,99651.0,99620.0,0.1556]
[1738000194311,0.200819,99627.0,99615.0,0.200842]
[1738000194524,0.200821,99626.0,99616.0,0.53172872]
[1738000194721,0.36095052,99631.0,99621.0,1.44980474]
[1738000194922,0.00015052,99631.0,99629.0,0.561613]
[1738000195123,0.00015052,99631.0,99621.0,1.44980474]
[1738000195124,0.00015052,99631.0,99622.0,0.3608]
[1738000195320,0.00015052,99631.0,99630.0,0.200813]
[1738000196619,0.00015052,99631.0,99630.0,0.564613]
[1738000197119,0.00015052,99631.0,99630.0,2.065613]
[1738000197317,0.5296059,99656.0,99644.0,0.200784]
[1738000197523,0.53012591,99656.0,99644.0,0.200784]
[1738000197728,0.53012591,99656.0,99639.0,0.3608]
[1738000198029,0.53012591,99656.0,99640.0,0.22402827]
[1738000198212,0.200764,99655.0,99641.0,0.20079]
[1738000198418,0.20091452,99655.0,99643.0,0.200784]
[1738000198716,0.20091452,99655.0,99639.0,0.3608]
[1738000198717,0.00015052,99655.0,99639.0,0.3608]
[1738000198914,0.00015052,99655.0,99645.0,0.200781]
[1738000199117,0.00015052,99655.0,99646.0,0.20078]
[1738000199419,0.00015052,99655.0,99650.0,0.3608]
[1738000199620,0.00015052,99655.0,99654.0,0.200764]
[1738000199820,0.00015052,99655.0,99650.0,0.3608]
[1738000200025,0.002,99651.0,99650.0,0.3608]
[1738000200527,0.001,99651.0,99650.0,0.200772]
[1738000200829,0.001,99651.0,99650.0,0.15057674]
[1738000201228,0.002,99651.0,99643.0,0.00015052]
[1738000201425,0.3608,99644.0,99643.0,0.00015052]
[1738000201627,0.3608,99644.0,99616.0,0.4948]
[1738000201819,0.3608,99636.0,99616.0,0.4948]
[1738000202024,0.200804,99635.0,99623.0,0.200825]
[1738000202224,0.200804,99635.0,99623.0,1.700825]
[1738000202423,0.3608,99636.0,99625.0,0.3608]
[1738000202932,0.3608,99636.0,99626.0,0.200821]
[1738000203241,0.3608,99636.0,99625.0,0.3608]
[1738000203430,0.200804,99635.0,99625.0,0.3608]
[1738000203620,0.3608,99636.0,99625.0,0.3648]
[1738000203932,0.3608,99626.0,99609.0,0.003]
[1738000204117,0.200853,99610.0,99609.0,0.003]
[1738000204319,0.200863,99605.0,99604.0,0.29796438]
[1738000204825,0.200863,99605.0,99604.0,0.04096438]
[1738000205031,0.3,99605.0,99574.0,1.50056]
[1738000205216,0.3341,99609.0,99574.0,0.00056]
[1738000205217,0.200924,99575.0,99574.0,0.00056]
[1738000205421,0.20093,99572.0,99571.0,0.36490771]
[1738000206837,0.20094,99567.0,99550.0,0.04549691]
[1738000207029,0.56174,99567.0,99549.0,1.8638]
[1738000207231,0.3608,99567.0,99549.0,1.8638]
[1738000207420,0.561761,99557.0,99549.0,1.503]
[1738000207623,0.200962,99556.0,99549.0,1.503]
[1738000207817,0.3608,99557.0,99549.0,1.54714547]
[1738000207818,0.200966,99555.0,99549.0,1.54714547]
[1738000208026,0.200966,99554.0,99549.0,1.54714547]
[1738000208328,0.0001506,99563.0,99549.0,1.54714547]
[1738000208634,0.561774,99550.0,99549.0,0.003]
[1738000209530,0.60755528,99550.0,99549.0,0.003]
[1738000209835,0.40658128,99550.0,99526.0,0.31498908]
[1738000210138,0.20102,99527.0,99526.0,0.31498908]
[1738000212733,0.20402,99527.0,99526.0,0.31498908]
[1738000212928,0.20402,99527.0,99508.0,0.0006]
[1738000212929,0.003,99527.0,99508.0,0.0006]
[1738000213135,0.003,99527.0,99526.0,0.201022]
[1738000213331,0.201024,99526.0,99513.0,0.201047]
[1738000213540,0.004,99527.0,99507.0,0.00150738]
[1738000213834,0.004,99527.0,99526.0,1.5]
[1738000214234,0.003,99527.0,99526.0,1.5]
[1738000214742,0.20402,99527.0,99526.0,1.5]
[1738000215129,0.20302,99527.0,99526.0,1.5]
[1738000215331,0.002,99527.0,99508.0,0.001]
[1738000215532,0.561856,99510.0,99508.0,0.001]
[1738000215932,0.561856,99510.0,99509.0,1.44985709]
[1738000216140,0.201059,99508.0,99507.0,0.00150738]
[1738000217538,0.36132001,99510.0,99507.0,0.00150738]
[1738000217730,0.3608,99510.0,99507.0,0.00150738]
[1738000218742,0.3608,99525.0,99508.0,0.3608]
[1738000218941,0.3608,99525.0,99508.0,0.31065709]
[1738000219130,0.3608,99525.0,99509.0,0.3249]
[1738000219538,0.3608,99525.0,99510.0,0.201054]
[1738000219730,0.3608,99525.0,99510.0,0.22407103]
[1738000220041,0.3608,99552.0,99533.0,0.201008]
[1738000220239,0.200988,99543.0,99524.0,0.3608]
[1738000220545,0.3608,99552.0,99532.0,0.3608]
[1738000220842,0.200997,99539.0,99526.0,0.3608]
[1738000221043,0.3608,99552.0,99526.0,0.561821]
[1738000221241,0.20099,99543.0,99526.0,0.561821]
[1738000221638,0.20099,99543.0,99535.0,0.3608]
[1738000222144,0.001,99536.0,99535.0,0.31065709]
[1738000222340,0.3608,99552.0,99535.0,0.31065709]
[1738000222341,0.1185235,99561.0,99546.0,0.200981]
[1738000222642,0.1185235,99561.0,99543.0,0.3608]
[1738000222836,0.3608,99560.0,99544.0,0.1546]
[1738000223034,0.200975,99550.0,99537.0,0.124]
[1738000223234,0.200988,99543.0,99537.0,0.124]
[1738000223436,0.3608,99551.0,99537.0,0.124]
[1738000223638,0.00015068,99553.0,99537.0,0.124]
[1738000223842,0.00015068,99553.0,99538.0,0.200998]
[1738000224139,0.3608,99541.0,99535.0,0.001]
[1738000224344,0.201002,99537.0,99535.0,0.001]
[1738000224741,0.3608,99541.0,99534.0,0.00015068]
[1738000225134,0.3608,99549.0,99531.0,0.201012]
[1738000225135,0.561777,99549.0,99531.0,0.201012]
[1738000225336,0.3608,99549.0,99534.0,0.3608]
[1738000225531,0.3608,99549.0,99542.0,0.200989]
[1738000225847,0.00015068,99553.0,99537.0,0.001]
[1738000226037,0.20098,99547.0,99527.0,0.1597]
[1738000226243,0.20098,99547.0,99538.0,0.3608]
[1738000226435,0.200983,99546.0,99538.0,0.3608]
[1738000226839,0.200987,99544.0,99542.0,0.001]
[1738000227940,0.3608,99543.0,99542.0,0.001]
[1738000228143,0.3608,99543.0,99511.0,0.11645709]
[1738000228345,0.201022,99527.0,99511.0,0.11645709]
[1738000228644,0.201023,99526.0,99512.0,0.201051]
[1738000228846,0.3608,99529.0,99511.0,0.11645709]
[1738000229050,0.201031,99522.0,99511.0,0.11645709]
[1738000229341,0.201031,99522.0,99511.0,0.11745709]
[1738000229532,0.201033,99521.0,99511.0,0.11745709]
[1738000229738,0.201049,99513.0,99511.0,0.11845709]
[1738000229941,0.201049,99513.0,99512.0,0.001]
[1738000230440,0.3608,99520.0,99511.0,0.11945709]
[1738000230638,0.201051,99512.0,99511.0,0.11945709]
[1738000231041,0.201051,99512.0,99511.0,0.06931418]
[1738000231843,0.201051,99512.0,99511.0,0.06731418]
[1738000232043,0.201051,99512.0,99511.0,0.06631418]
[1738000232244,0.3608,99521.0,99511.0,0.06631418]
[1738000232748,0.201051,99512.0,99511.0,0.06631418]
[1738000232949,0.201053,99511.0,99510.0,0.00052]
[1738000233259,0.201055,99510.0,99509.0,0.00026957]
[1738000233446,0.201071,99502.0,99501.0,1.5]
[1738000233845,0.201073,99501.0,99500.0,0.1]
[1738000234149,0.201073,99501.0,99500.0,0.04985709]
[1738000235633,0.201057,99509.0,99501.0,0.201073]
[1738000235843,0.561856,99510.0,99500.0,0.25093009]
[1738000236047,0.003,99501.0,99500.0,0.25093009]
[1738000236848,0.003,99501.0,99500.0,0.04985709]
[1738000237353,0.20108,99498.0,99492.0,0.3608]
[1738000237736,0.20108,99498.0,99492.0,0.40659203]
[1738000237942,0.20108,99498.0,99492.0,0.04579203]
[1738000238143,0.201083,99496.0,99484.0,0.201106]
[1738000238450,0.201083,99496.0,99489.0,1.50450764]
[1738000238638,0.201089,99493.0,99492.0,0.00190556]
[1738000239146,0.3608,99494.0,99489.0,0.003]
[1738000239147,0.19897467,99490.0,99489.0,0.003]
[1738000239452,0.55977467,99490.0,99489.0,0.003]
[1738000240047,0.201126,99475.0,99474.0,0.003]
[1738000240248,0.201134,99471.0,99468.0,0.04548418]
[1738000240547,0.3608,99475.0,99459.0,0.003]
[1738000240762,0.201155,99461.0,99459.0,0.003]
[1738000241146,0.201155,99461.0,99459.0,0.04742936]
[1738000241449,0.201155,99461.0,99459.0,0.003]
[1738000241647,0.201155,99461.0,99460.0,1.5]
[1738000241947,0.3608,99467.0,99460.0,1.5]
[1738000242248,0.001,99461.0,99460.0,1.5]
[1738000242446,0.201156,99460.0,99459.0,0.003]
[1738000243341,0.201173,99452.0,99445.0,1.49922379]
[1738000243539,0.201166,99455.0,99445.0,1.49922379]
[1738000243842,0.3608,99456.0,99445.0,1.49922379]
[1738000243843,0.201178,99449.0,99445.0,1.49922379]
[1738000244043,0.3608,99456.0,99425.0,0.00150855]
[1738000244044,0.201186,99445.0,99425.0,0.00150855]
[1738000244249,0.3608,99446.0,99425.0,0.00150855]
[1738000244250,0.201216,99430.0,99425.0,0.00150855]
[1738000244444,0.922816,99430.0,99425.0,0.00150855]
[1738000244654,0.201225,99426.0,99425.0,0.00150855]
[1738000244846,0.201239,99419.0,99401.0,0.35895269]
[1738000245048,0.201247,99415.0,99413.0,0.08938276]
[1738000245355,0.201247,99415.0,99401.0,0.35839269]
[1738000245356,0.201261,99408.0,99407.0,0.04361622]
[1738000245649,0.562061,99408.0,99407.0,0.04361622]
[1738000245841,0.862061,99408.0,99407.0,0.04361622]
[1738000246042,0.562061,99408.0,99407.0,0.04361622]
[1738000246347,0.562061,99408.0,99401.0,0.35839269]
[1738000246348,0.201273,99402.0,99401.0,0.351866]
[1738000246742,0.201279,99399.0,99383.0,0.33911151]
[1738000247045,0.3608,99378.0,99368.0,6.7e-07]
[1738000247250,0.3608,99360.0,99332.0,0.3841082]
[1738000247439,0.7216,99333.0,99314.0,0.0005208]
[1738000247637,0.22502428,99330.0,99326.0,0.35907339]
[1738000247835,0.22502428,99330.0,99326.0,0.31904633]
[1738000248047,0.02065294,99329.0,99326.0,0.29586229]
[1738000248264,0.52502428,99330.0,99326.0,0.29586229]
[1738000248552,0.57616512,99330.0,99326.0,0.29586229]
[1738000248849,0.05114084,99330.0,99326.0,0.29586229]
[1738000249049,0.36156,99332.0,99326.0,0.29586229]
[1738000249250,0.003,99329.0,99327.0,0.201425]
[1738000249444,0.003,99329.0,99327.0,0.44248852]
[1738000249647,0.003,99329.0,99327.0,0.15128209]
[1738000249843,0.003,99330.0,99327.0,0.15128209]
[1738000250044,0.004,99330.0,99327.0,0.15128209]
[1738000250240,0.004,99330.0,99326.0,0.29586229]
[1738000250442,0.05136598,99330.0,99326.0,0.29586229]
[1738000250641,0.05136598,99330.0,99320.0,0.0005208]
[1738000250642,1.33825057,99328.0,99320.0,0.0005208]
[1738000250842,1.33825057,99328.0,99305.0,0.3608]
[1738000251052,1.33825057,99328.0,99326.0,0.201427]
[1738000251345,1.33825057,99328.0,99327.0,0.29120643]
[1738000251546,1.33825057,99328.0,99327.0,1.79120643]
[1738000251947,1.33825057,99328.0,99327.0,1.5]
[1738000252347,1.33825057,99328.0,99327.0,1.44985709]
[1738000252651,1.08732093,99328.0,99327.0,1.74106352]
[1738000252953,1.08732093,99328.0,99327.0,1.44985709]
[1738000253144,1.08732093,99328.0,99327.0,1.74106352]
[1738000253350,0.00015099,99338.0,99328.0,0.29120643]
[1738000253550,0.3608,99376.0,99352.0,0.201374]
[1738000253849,0.05061713,99361.0,99352.0,0.49258043]
[1738000254245,0.05061713,99361.0,99352.0,1.99258043]
[1738000254450,0.3608,99376.0,99352.0,1.79120643]
[1738000254642,0.00015099,99362.0,99361.0,0.10987088]
[1738000254841,0.00015099,99362.0,99361.0,0.201356]
[1738000255447,0.00015099,99362.0,99361.0,0.26108397]
[1738000256347,0.00115099,99362.0,99361.0,0.26108397]
[1738000256548,0.00215099,99362.0,99361.0,0.26108397]
[1738000256749,0.00215099,99362.0,99361.0,0.04953359]
[1738000256948,0.00215099,99362.0,99361.0,0.25088959]
[1738000257843,0.00215099,99362.0,99361.0,0.201356]
[1738000258042,0.00215099,99362.0,99360.0,0.30948439]
[1738000258252,0.00215099,99362.0,99361.0,0.201356]
[1738000258445,0.00215099,99362.0,99360.0,0.30948439]
[1738000258943,0.00215099,99362.0,99361.0,0.562156]
[1738000259159,0.20394336,99371.0,99369.0,0.20134]
[1738000259355,0.20394336,99384.0,99373.0,0.201331]
[1738000259857,0.20394336,99384.0,99370.0,0.3608]
[1738000260154,0.20394336,99384.0,99373.0,0.201331]
[1738000260359,0.20394336,99384.0,99378.0,0.3608]
[1738000260556,0.00015099,99387.0,99386.0,0.201306]
[1738000260859,0.23307812,99393.0,99386.0,0.3608]
[1738000261044,0.23307812,99393.0,99379.0,0.1663]
[1738000261448,0.3608,99402.0,99379.0,0.11615709]
[1738000261449,0.17525407,99387.0,99379.0,0.11615709]
[1738000261756,0.17525407,99387.0,99380.0,0.201317]
[1738000261945,0.17525407,99387.0,99386.0,0.3608]
[1738000262144,0.00015099,99393.0,99392.0,0.201293]
[1738000262447,0.00299,99412.0,99392.0,0.201293]
[1738000262448,0.00299,99412.0,99411.0,0.201255]
[1738000262958,0.36379,99412.0,99393.0,1.50052]
[1738000263159,0.3608,99400.0,99387.0,0.201302]
[1738000263365,0.003,99393.0,99387.0,0.201302]
[1738000263554,0.3608,99389.0,99384.0,0.00015092]
[1738000263857,0.003,99393.0,99384.0,0.00015092]
[1738000264156,0.3608,99386.0,99384.0,0.00015092]
[1738000264658,0.3608,99386.0,99384.0,0.201309]
[1738000265163,0.00015092,99403.0,99402.0,0.201273]
[1738000265850,0.00015092,99403.0,99402.0,1.701273]
[1738000266051,0.00015092,99403.0,99402.0,1.5]
[1738000266261,0.14647839,99421.0,99402.0,1.8608]
[1738000266451,0.14647839,99421.0,99420.0,0.201237]
[1738000266860,0.3608,99440.0,99426.0,0.201224]
[1738000267163,0.3608,99453.0,99441.0,0.201194]
[1738000267552,0.3608,99453.0,99441.0,0.15105109]
[1738000267754,0.00015092,99451.0,99441.0,0.15105109]
[1738000268150,0.00015092,99451.0,99431.0,0.050303]
[1738000268455,0.3608,99445.0,99430.0,0.22502428]
[1738000268665,0.3608,99445.0,99444.0,0.201188]
[1738000268963,0.3608,99445.0,99430.0,0.274929]
[1738000269158,0.3608,99445.0,99434.0,0.201207]
[1738000269159,0.3608,99436.0,99434.0,0.201207]
[1738000269362,0.00015092,99451.0,99435.0,0.84552]
[1738000269573,0.3608,99471.0,99456.0,0.201164]
[1738000269865,0.3608,99471.0,99450.0,0.3608]
[1738000269866,0.00299,99472.0,99466.0,0.201143]
[1738000270049,0.00299,99472.0,99470.0,0.201135]
[1738000270455,0.00150899,99480.0,99470.0,0.3608]
[1738000270667,0.00299,99488.0,99487.0,0.15095809]
[1738000271153,0.00299,99488.0,99473.0,0.201128]
[1738000271765,0.00299,99488.0,99480.0,0.201114]
[1738000271766,0.3608,99482.0,99480.0,0.201114]
[1738000271949,0.3608,99482.0,99472.0,0.22502428]
[1738000272148,0.3608,99483.0,99479.0,0.201117]
[1738000272358,0.26839413,99488.0,99472.0,1.72502428]
[1738000272561,0.27139413,99488.0,99486.0,0.201101]
[1738000273264,0.26839413,99488.0,99487.0,0.3608]
[1738000273662,0.00299,99488.0,99487.0,0.31065709]
[1738000273961,0.01099,99488.0,99486.0,0.202101]
[1738000274468,0.01099,99488.0,99487.0,1.5]
[1738000275158,0.01399,99488.0,99487.0,1.5]
[1738000275360,0.00599,99488.0,99487.0,1.5]
[1738000275562,0.01399,99488.0,99487.0,0.001]
[1738000276164,0.01399,99488.0,99485.0,0.04916428]
[1738000276369,0.01399,99488.0,99486.0,0.201101]
[1738000276754,0.01399,99488.0,99486.0,0.15095809]
[1738000276965,0.3608,99487.0,99478.0,0.04965215]
[1738000277268,0.3608,99479.0,99462.0,0.1238]
[1738000277464,0.3608,99471.0,99462.0,0.1238]
[1738000277668,0.201145,99466.0,99464.0,0.05018528]
[1738000278276,0.3608,99467.0,99430.0,0.22502428]
[1738000278466,0.3608,99467.0,99429.0,0.49584]
[1738000278467,0.3608,99446.0,99440.0,0.22502428]
[1738000278672,0.3608,99460.0,99448.0,0.201179]
[1738000278864,0.3608,99460.0,99450.0,0.22502428]
[1738000279062,0.3608,99451.0,99450.0,0.22502428]
[1738000279267,0.3608,99460.0,99450.0,0.22502428]
[1738000279468,0.36095084,99460.0,99455.0,0.201165]
[1738000279663,0.36095084,99460.0,99452.0,0.201171]
[1738000279871,0.36095084,99460.0,99450.0,0.22502428]
[1738000279872,0.36095084,99460.0,99459.0,0.201158]
[1738000280070,0.00115084,99460.0,99459.0,0.201158]
[1738000280263,0.36195084,99460.0,99450.0,0.22502428]
[1738000280460,0.3608,99451.0,99450.0,0.22502428]
[1738000280669,0.3608,99451.0,99450.0,0.05022049]
[1738000280869,0.3608,99451.0,99449.0,0.201177]
[1738000281375,0.36195084,99460.0,99458.0,0.201159]
[1738000281768,0.36195084,99460.0,99459.0,1.5]
[1738000281970,0.36095084,99460.0,99459.0,1.5]
[1738000282358,0.72175084,99460.0,99459.0,1.5]
[1738000282863,0.72175084,99460.0,99459.0,1.44985709]
[1738000283160,0.72175084,99460.0,99459.0,0.001]
[1738000283365,0.77297044,99460.0,99459.0,0.001]
[1738000283567,0.72175084,99460.0,99459.0,0.001]
[1738000283771,0.72175084,99460.0,99459.0,0.002]
[1738000284275,0.00015084,99460.0,99459.0,0.002]
[1738000284467,0.3608,99476.0,99459.0,1.91436676]
[1738000284673,0.3608,99489.0,99468.0,0.201139]
[1738000284867,0.3608,99480.0,99476.0,0.201122]
[1738000285074,0.3608,99480.0,99466.0,0.22502428]
[1738000285274,0.3608,99467.0,99466.0,0.22502428]
[1738000285573,0.3608,99467.0,99459.0,1.50252]
[1738000285793,0.3608,99460.0,99448.0,0.15318693]
[1738000286076,0.3608,99460.0,99459.0,0.001]
[1738000286274,0.40971346,99460.0,99459.0,1.5]